bitfinex/quotes_BTCUSD_20250127
["timestamp","ask_amount","ask_price","bid_price","bid_amount"]
[1737982950531,0.83114558,100490.0,100480.0,0.00014899]
[1737982951151,0.98114558,100490.0,100480.0,0.00014899]
[1737982951510,0.447683,100480.0,100470.0,0.00059778]
[1737982951686,0.399598,100470.0,100460.0,0.00029778]
[1737982951908,0.78843758,100470.0,100460.0,0.00029778]
[1737982952320,0.447713,100460.0,100450.0,0.24553239]
[1737982952527,0.54506029,100460.0,100450.0,0.24568157]
[1737982952934,0.52506029,100460.0,100450.0,0.24568157]
[1737982953476,0.37506029,100460.0,100450.0,0.24568157]
[1737982954211,0.37606029,100460.0,100450.0,0.24568157]
[1737982954635,0.54606029,100460.0,100450.0,0.24568157]
[1737982955906,0.52606029,100460.0,100450.0,0.24568157]
[1737982956051,0.37606029,100460.0,100450.0,0.24568157]
[1737982956252,0.22674729,100460.0,100450.0,0.39500957]
[1737982956673,0.37606029,100460.0,100450.0,0.24568157]
[1737982956873,0.1294,100460.0,100450.0,0.39500957]
[1737982957227,0.0491,100460.0,100450.0,0.39500957]
[1737982957371,0.001,100460.0,100450.0,0.49235686]
[1737982957550,0.0458,100490.0,100470.0,0.149298]
[1737982957754,0.0783,100500.0,100490.0,0.149268]
[1737982957953,0.17564729,100500.0,100490.0,0.149268]
[1737982958788,0.0458,100510.0,100500.0,0.149253]
[1737982958966,0.04594904,100510.0,100500.0,0.149253]
[1737982959166,0.14329633,100510.0,100500.0,0.149253]
[1737982959371,0.00014904,100510.0,100500.0,0.149253]
[1737982959836,0.09873402,100510.0,100500.0,0.149253]
[1737982960116,0.348259,100500.0,100480.0,0.398063]
[1737982960317,0.09734729,100490.0,100470.0,0.203051]
[1737982960569,0.34597329,100490.0,100450.0,0.44492975]
[1737982960773,0.43187869,100480.0,100460.0,0.547458]
[1737982960959,0.09734729,100470.0,100460.0,0.199074]
[1737982961509,0.0890385,100470.0,100460.0,0.199074]
[1737982961909,0.0823,100480.0,100470.0,0.149298]
[1737982962159,0.248633,100490.0,100470.0,0.149298]
[1737982962160,0.0496,100490.0,100480.0,0.149283]
[1737982962475,0.0763,100500.0,100490.0,0.149268]
[1737982962936,0.0753,100500.0,100490.0,0.149268]
[1737982963310,0.0464,100510.0,100500.0,0.149253]
[1737982963517,0.14389633,100510.0,100500.0,0.149253]
[1737982963713,0.29437202,100510.0,100500.0,0.149253]
[1737982963959,0.29313433,100510.0,100500.0,0.149253]
[1737982964164,0.149253,100500.0,100490.0,0.001]
[1737982964370,0.09734729,100500.0,100490.0,0.001]
[1737982964572,0.001,100500.0,100490.0,0.404031]
[1737982964688,0.04654904,100510.0,100500.0,0.149253]
[1737982964899,0.14389633,100510.0,100500.0,0.149253]
[1737982965119,0.14389633,100510.0,100480.0,0.199041]
[1737982965295,0.09734729,100500.0,100490.0,0.199022]
[1737982965516,0.09734729,100500.0,100490.0,0.398035]
[1737982966327,0.04754904,100510.0,100500.0,0.149253]
[1737982966528,0.49213333,100510.0,100500.0,0.149253]
[1737982966904,0.49213333,100510.0,100490.0,0.547283]
[1737982967074,0.24760029,100500.0,100490.0,0.354272]
[1737982967288,0.09734729,100500.0,100490.0,0.351272]
[1737982967621,0.09734729,100500.0,100490.0,0.348272]
[1737982967921,0.04654904,100510.0,100500.0,0.149253]
[1737982968118,0.14389633,100510.0,100500.0,0.149253]
[1737982969121,0.00014904,100510.0,100500.0,0.299253]
[1737982969616,0.00014904,100510.0,100500.0,0.39660029]
[1737982970096,0.00014904,100510.0,100500.0,0.299253]
[1737982970615,0.00014904,100510.0,100500.0,0.39960029]
[1737982970878,0.00014904,100510.0,100500.0,0.149253]
[1737982971149,0.24787593,100510.0,100500.0,0.154253]
[1737982971389,0.24787593,100510.0,100500.0,0.005]
[1737982971642,0.17693793,100510.0,100500.0,0.149253]
[1737982971870,0.17793793,100510.0,100500.0,0.157253]
[1737982972105,0.17793793,100510.0,100500.0,0.16324796]
[1737982972106,0.08159064,100510.0,100500.0,0.16324796]
[1737982972348,0.00229064,100510.0,100500.0,0.16324791]
[1737982973072,0.00229064,100510.0,100500.0,0.31324791]
[1737982973323,0.0825,100550.0,100540.0,0.149194]
[1737982973599,0.18034458,100550.0,100540.0,0.149194]
[1737982974683,0.00049729,100550.0,100540.0,0.15018852]
[1737982974940,0.00049729,100550.0,100540.0,0.149194]
[1737982975180,0.44694858,100550.0,100530.0,0.348127]
[1737982975416,0.09734729,100540.0,100520.0,0.198954]
[1737982975635,0.09734729,100540.0,100530.0,0.149209]
[1737982975842,0.24654129,100540.0,100530.0,0.149209]
[1737982976044,0.09734729,100540.0,100530.0,0.149209]
[1737982976748,0.08,100530.0,100520.0,0.149217]
[1737982977178,0.32655629,100530.0,100520.0,0.149217]
[1737982977381,0.149224,100520.0,100510.0,0.348202]
[1737982977578,0.09734729,100520.0,100510.0,0.198972]
[1737982978209,0.24657129,100520.0,100510.0,0.198972]
[1737982978613,0.24657129,100520.0,100510.0,0.202972]
[1737982979031,0.24657129,100520.0,100510.0,0.198972]
[1737982979479,0.09734729,100520.0,100510.0,0.198972]
[1737982979683,0.09734729,100520.0,100510.0,0.149234]
[1737982980550,0.001,100520.0,100510.0,0.149234]
[1737982980784,0.09834729,100520.0,100510.0,0.149234]
[1737982980996,0.44653729,100520.0,100510.0,0.149238]
[1737982981207,0.44553729,100520.0,100510.0,0.149238]
[1737982981410,0.149238,100510.0,100500.0,0.39477739]
[1737982981622,0.348199,100520.0,100510.0,0.004]
[1737982981844,0.71964629,100520.0,100510.0,0.002]
[1737982982047,0.57041329,100520.0,100500.0,0.24553239]
[1737982982250,0.24658529,100510.0,100500.0,0.24553239]
[1737982982456,0.09734729,100510.0,100500.0,0.39478539]
[1737982982661,0.1251,100520.0,100510.0,0.149238]
[1737982983084,0.001,100520.0,100510.0,0.149238]
[1737982983329,0.09848889,100520.0,100510.0,0.149238]
[1737982983535,0.0011416,100520.0,100510.0,0.149238]
[1737982983946,0.09748889,100520.0,100510.0,0.149238]
[1737982984160,0.10248889,100520.0,100510.0,0.149238]
[1737982984406,0.0051416,100520.0,100510.0,0.15023282]
[1737982984634,0.10248889,100520.0,100510.0,0.149238]
[1737982984840,0.25296258,100520.0,100500.0,0.59677239]
[1737982985046,0.63647758,100510.0,100500.0,0.24853239]
[1737982985456,0.63647758,100510.0,100500.0,0.24553239]
[1737982985691,0.78647758,100510.0,100500.0,0.24553239]
[1737982985919,0.80647758,100510.0,100500.0,0.24553239]
[1737982986127,0.81647758,100510.0,100500.0,0.24553239]
[1737982986353,0.81647758,100510.0,100500.0,0.19553239]
[1737982986544,0.80647758,100510.0,100500.0,0.19553239]
[1737982986995,0.83698904,100510.0,100500.0,0.19553239]
[1737982987225,0.81647758,100510.0,100500.0,0.19553239]
[1737982987437,0.81647758,100510.0,100500.0,0.19753239]
[1737982988019,0.82447758,100510.0,100500.0,0.19853239]
[1737982988229,0.82447758,100510.0,100500.0,0.19653239]
[1737982988436,0.81647758,100510.0,100500.0,0.19553239]
[1737982988642,0.82047758,100510.0,100500.0,0.19553239]
[1737982988847,0.81947758,100510.0,100500.0,0.19649239]
[1737982989056,0.79947758,100510.0,100500.0,0.19649239]
[1737982989268,0.79947758,100510.0,100500.0,0.34574539]
[1737982989269,0.19174729,100510.0,100500.0,0.34574539]
[1737982990137,0.013,100510.0,100500.0,0.34574539]
[1737982990348,0.004,100510.0,100500.0,0.34474539]
[1737982990551,0.012,100510.0,100500.0,0.34574539]
[1737982990780,0.008,100510.0,100500.0,0.34574539]
[1737982991003,0.0001416,100520.0,100510.0,0.149238]
[1737982991201,0.0001416,100520.0,100510.0,0.15023281]
[1737982991410,0.09748889,100520.0,100510.0,0.149238]
[1737982991625,0.149238,100510.0,100500.0,0.34474539]
[1737982991832,0.29770858,100520.0,100500.0,0.34474539]
[1737982991833,0.09748889,100520.0,100510.0,0.149238]
[1737982992287,0.24671289,100520.0,100510.0,0.149238]
[1737982992492,0.09748889,100520.0,100510.0,0.149238]
[1737982993075,0.24671289,100520.0,100510.0,0.149238]
[1737982993272,0.09748889,100520.0,100510.0,0.149238]
[1737982993705,0.09748889,100520.0,100510.0,0.002]
[1737982993706,0.44568689,100520.0,100510.0,0.002]
[1737982994087,0.69442289,100520.0,100500.0,0.34474439]
[1737982994289,0.24658529,100510.0,100500.0,0.34474439]
[1737982994488,0.50997758,100510.0,100500.0,0.19549239]
[1737982994900,0.58877758,100510.0,100500.0,0.19549239]
[1737982995103,0.73877758,100510.0,100500.0,0.19549239]
[1737982995520,0.73877758,100510.0,100500.0,0.19749239]
[1737982995724,0.74877758,100510.0,100500.0,0.19749239]
[1737982995889,0.78727758,100510.0,100500.0,0.11939239]
[1737982996093,0.78727758,100510.0,100500.0,0.11739239]
[1737982996940,0.83859967,100510.0,100500.0,0.11739239]
[1737982997115,0.79727758,100510.0,100500.0,0.11739239]
[1737982997312,0.78727758,100510.0,100500.0,0.11939239]
[1737982997559,0.78727758,100510.0,100500.0,0.11739239]
[1737982997756,0.79927758,100510.0,100500.0,0.11739239]
[1737982997932,0.80327758,100510.0,100500.0,0.11739239]
[1737982998147,0.81127758,100510.0,100500.0,0.11739239]
[1737982998360,0.80727758,100510.0,100500.0,0.11739239]
[1737982998584,0.82027758,100510.0,100500.0,0.11839239]
[1737982998751,0.299283,100480.0,100470.0,0.00029736]
[1737982998928,0.66002258,100480.0,100470.0,0.0004464]
[1737983000294,0.66102258,100480.0,100470.0,0.0004464]
[1737983000776,0.39663029,100480.0,100470.0,0.1497444]
[1737983001051,0.09734729,100480.0,100470.0,0.1497444]
[1737983001255,0.25163029,100480.0,100470.0,0.1497444]
[1737983001488,0.10234729,100480.0,100470.0,0.1507444]
[1737983002354,0.005,100480.0,100470.0,0.1507444]
[1737983002569,0.00169331,100480.0,100470.0,0.30173962]
[1737983002786,0.0001416,100520.0,100480.0,0.2275]
[1737983002992,0.09748889,100520.0,100510.0,0.149238]
[1737983003199,0.09748889,100520.0,100510.0,0.30023283]
[1737983003200,0.0001416,100520.0,100510.0,0.30023283]
[1737983003412,0.0001416,100520.0,100510.0,0.299238]
[1737983004046,6e-07,100520.0,100510.0,0.39658529]
[1737983004288,6e-07,100520.0,100510.0,0.84877758]
[1737983004493,0.0891039,100560.0,100550.0,0.149179]
[1737983004732,0.0891039,100560.0,100550.0,0.299179]
[1737983004733,0.08960119,100560.0,100550.0,0.299179]
[1737983004955,0.08960119,100560.0,100550.0,0.39652629]
[1737983005349,0.08960119,100560.0,100550.0,0.47242629]
[1737983005567,0.04982319,100560.0,100550.0,0.47242629]
[1737983005760,1.9e-07,100560.0,100550.0,0.47242629]
[1737983005994,1.9e-07,100560.0,100550.0,0.48242629]
[1737983006214,3.8e-07,100580.0,100570.0,0.299149]
[1737983006410,9.93e-05,100580.0,100570.0,0.39649629]
[1737983007387,3e-07,100580.0,100570.0,0.44289629]
[1737983007600,3e-07,100580.0,100570.0,0.46399181]
[1737983008563,3e-07,100580.0,100570.0,0.46899181]
[1737983008964,3e-07,100580.0,100570.0,0.36250864]
[1737983009372,3e-07,100580.0,100570.0,0.45985593]
[1737983010610,3e-07,100580.0,100570.0,0.46985593]
[1737983010975,3e-07,100580.0,100570.0,0.45985593]
[1737983012568,3e-07,100580.0,100570.0,0.46985593]
[1737983012816,3e-07,100580.0,100570.0,0.45985593]
[1737983013039,3e-07,100580.0,100570.0,0.46985593]
[1737983013474,3e-07,100580.0,100570.0,0.45985593]
[1737983015462,3e-07,100580.0,100570.0,0.46985593]
[1737983015669,0.88997489,100640.0,100620.0,0.149075]
[1737983015874,0.44515529,100630.0,100610.0,0.546632]
[1737983016291,0.24640729,100630.0,100610.0,0.546628]
[1737983016507,0.09734729,100630.0,100620.0,0.149075]
[1737983016704,0.34359193,100640.0,100630.0,0.14906]
[1737983016705,0.00014904,100640.0,100630.0,0.14906]
[1737983017875,0.09949633,100640.0,100630.0,0.14906]
[1737983018338,0.09949633,100640.0,100620.0,0.546579]
[1737983018339,0.24854933,100640.0,100620.0,0.546579]
[1737983018519,0.09734729,100630.0,100620.0,0.149075]
[1737983019014,0.24640729,100630.0,100610.0,0.546622]
[1737983019216,0.24640829,100630.0,100610.0,0.546626]
[1737983019420,0.09734729,100630.0,100620.0,0.149075]
[1737983019828,0.00014904,100640.0,100630.0,0.14906]
[1737983020058,0.09749633,100640.0,100630.0,0.14906]
[1737983020465,0.00014904,100640.0,100630.0,0.14906]
[1737983020879,0.00014904,100640.0,100630.0,0.15206]
[1737983021515,0.00014904,100640.0,100630.0,0.15305358]
[1737983021721,0.00014904,100640.0,100630.0,0.14906]
[1737983021922,0.09749633,100640.0,100630.0,0.15206]
[1737983022353,0.00014904,100640.0,100630.0,0.15006]
[1737983022742,0.00114904,100640.0,100630.0,0.1500536]
[1737983024010,0.00014904,100640.0,100630.0,0.14906]
[1737983024224,0.00014904,100640.0,100630.0,0.1613541]
[1737983024424,0.00014904,100640.0,100630.0,0.1643541]
[1737983024644,0.00014904,100640.0,100630.0,0.1613541]
[1737983024969,0.00014904,100640.0,100630.0,0.1673541]
[1737983025564,0.00014904,100640.0,100630.0,0.17134768]
[1737983025754,0.00014904,100640.0,100630.0,0.1703541]
[1737983025953,0.00014904,100640.0,100630.0,0.41869491]
[1737983026157,0.00014904,100640.0,100630.0,0.41770139]
[1737983026360,0.0001416,100650.0,100630.0,0.41770139]
[1737983026554,0.0001416,100650.0,100640.0,0.1500394]
[1737983026797,6e-07,100650.0,100640.0,0.39639329]
[1737983026999,6e-07,100650.0,100640.0,0.45601071]
[1737983027201,2e-07,100660.0,100650.0,0.15]
[1737983027554,2e-07,100660.0,100650.0,0.41929571]
[1737983028376,0.01514573,100670.0,100660.0,0.149016]
[1737983028577,0.01514573,100670.0,100660.0,0.24735639]
[1737983028713,0.01514573,100670.0,100660.0,0.27105571]
[1737983028956,7.3e-07,100670.0,100660.0,0.42105571]
[1737983029153,7.3e-07,100670.0,100660.0,0.45020805]
[1737983029357,3.3e-07,100690.0,100670.0,0.16]
[1737983029558,8e-07,100700.0,100690.0,0.298972]
[1737983029759,6.3e-07,100700.0,100690.0,0.46717814]
[1737983030192,6.3e-07,100700.0,100690.0,0.47717814]
[1737983030406,6.3e-07,100700.0,100690.0,0.73057043]
[1737983030732,6.3e-07,100700.0,100690.0,0.65971158]
[1737983030932,6.3e-07,100700.0,100690.0,0.39631929]
[1737983031303,6.3e-07,100700.0,100690.0,0.25031929]
[1737983031507,6.3e-07,100700.0,100690.0,0.286694]
[1737983031714,6.3e-07,100700.0,100690.0,0.74901344]
[1737983031932,0.0001415,100740.0,100730.0,0.148912]
[1737983032104,0.00029053,100740.0,100730.0,0.26858648]
[1737983032308,0.00029053,100740.0,100730.0,0.29869373]
[1737983032496,0.00029053,100740.0,100730.0,0.32929369]
[1737983033696,0.00029053,100740.0,100730.0,0.3069665]
[1737983033906,0.09763782,100740.0,100730.0,0.20961921]
[1737983034117,0.09763782,100740.0,100730.0,0.148912]
[1737983034320,0.24777351,100740.0,100720.0,0.148916]
[1737983034523,0.24653582,100740.0,100720.0,0.347486]
[1737983034732,0.24653582,100740.0,100730.0,0.008]
[1737983034733,0.19518853,100740.0,100730.0,0.008]
[1737983034938,0.347507,100720.0,100690.0,0.198615]
[1737983035160,0.32318929,100710.0,100690.0,0.34758]
[1737983035370,0.17424729,100710.0,100700.0,0.148957]
[1737983036218,0.424372,100730.0,100710.0,0.347527]
[1737983036424,0.36073958,100720.0,100700.0,0.546154]
[1737983036641,0.09734729,100720.0,100700.0,0.546153]
[1737983036840,0.09734729,100720.0,100700.0,0.744753]
[1737983037044,0.09734729,100720.0,100700.0,0.546153]
[1737983037250,0.09734729,100720.0,100710.0,0.148942]
[1737983037675,0.0769,100730.0,100720.0,0.148927]
[1737983037890,0.17424729,100730.0,100720.0,0.148927]
[1737983039299,0.04629053,100740.0,100720.0,0.148927]
[1737983039543,0.04629053,100740.0,100730.0,0.148912]
[1737983039544,0.14363782,100740.0,100730.0,0.148912]
[1737983040340,0.09763782,100740.0,100730.0,0.148912]
[1737983041200,0.09463782,100740.0,100730.0,0.148912]
[1737983041629,0.09438985,100740.0,100720.0,0.546039]
[1737983041838,0.50668514,100740.0,100720.0,0.347483]
[1737983042035,0.15014969,100730.0,100710.0,0.397148]
[1737983042242,0.09734729,100730.0,100720.0,0.148924]
[1737983042393,0.09734729,100730.0,100710.0,0.34751]
[1737983042394,0.44606698,100730.0,100710.0,0.34751]
[1737983042602,0.44482929,100730.0,100710.0,0.148938]
[1737983042817,0.44482929,100730.0,100710.0,0.546106]
[1737983043028,0.44609998,100720.0,100700.0,0.347554]
[1737983043223,0.24752198,100720.0,100700.0,0.546154]
[1737983043427,0.09734729,100720.0,100710.0,0.148942]
[1737983043638,0.24627429,100720.0,100700.0,0.546154]
[1737983043870,0.44486729,100720.0,100700.0,0.148955]
[1737983044077,0.64344629,100720.0,100700.0,0.347564]
[1737983044279,0.64344629,100720.0,100690.0,0.347597]
[1737983044280,0.34878969,100710.0,100690.0,0.347597]
[1737983044494,0.09734729,100700.0,100690.0,0.198628]
[1737983045775,0.09734729,100700.0,100690.0,0.19877703]
[1737983045978,0.49127259,100720.0,100690.0,0.19877703]
[1737983046184,0.09734729,100710.0,100700.0,0.198594]
[1737983046389,0.09734729,100710.0,100700.0,0.397196]
[1737983047029,0.0789413,100720.0,100700.0,0.397196]
[1737983047230,0.17628859,100720.0,100710.0,0.148942]
[1737983048038,0.32521659,100720.0,100700.0,0.546134]
[1737983048243,0.17628859,100720.0,100710.0,0.148942]
[1737983048893,0.32521559,100720.0,100710.0,0.148942]
[1737983049043,0.78720388,100720.0,100690.0,0.34772803]
[1737983049250,0.09734729,100710.0,100700.0,0.001]
[1737983049452,0.148957,100700.0,100690.0,0.00014903]
[1737983049666,0.24754198,100700.0,100690.0,0.00014903]
[1737983050013,0.09734729,100700.0,100690.0,0.14912103]
[1737983050213,0.69084359,100720.0,100700.0,0.347559]
[1737983050372,0.09734729,100710.0,100700.0,0.198607]
[1737983050980,0.148957,100700.0,100690.0,0.00014903]
[1737983051181,0.50969658,100700.0,100690.0,0.00014903]
[1737983052003,0.50969658,100700.0,100690.0,0.14912103]
[1737983052221,0.54090459,100720.0,100690.0,0.14912103]
[1737983052461,0.09734729,100710.0,100700.0,0.347547]
[1737983053096,0.0001413,100720.0,100700.0,0.347547]
[1737983053259,0.0001413,100720.0,100710.0,0.148942]
[1737983053444,0.0001413,100720.0,100710.0,0.14993486]
[1737983053641,0.0001413,100720.0,100710.0,0.148942]
[1737983054055,0.50981288,100720.0,100700.0,0.546138]
[1737983054269,0.09734729,100710.0,100700.0,0.348543]
[1737983054866,0.09734729,100710.0,100700.0,0.149948]
[1737983055510,0.09724498,100710.0,100700.0,0.148948]
[1737983055991,0.09724498,100710.0,100700.0,0.14924452]
[1737983056186,0.26353359,100720.0,100700.0,0.15024452]
[1737983056388,0.36088088,100720.0,100710.0,0.148942]
[1737983056585,0.0001413,100720.0,100710.0,0.148942]
[1737983057386,0.0001413,100720.0,100710.0,0.148942]
[1737983058405,0.09748859,100720.0,100710.0,0.148942]
[1737983059045,0.09748859,100720.0,100710.0,0.149942]
[1737983059467,0.51104557,100720.0,100710.0,0.001]
[1737983059677,0.50980788,100720.0,100710.0,0.001]
[1737983059880,0.50981788,100720.0,100700.0,0.34785052]
[1737983060144,0.0001413,100720.0,100710.0,0.148942]
[1737983060384,0.0001413,100720.0,100710.0,0.15093483]
[1737983060594,0.0001413,100720.0,100710.0,0.298942]
[1737983061046,0.0001413,100720.0,100710.0,0.1787842]
[1737983061047,0.09748859,100720.0,100710.0,0.1787842]
[1737983061248,0.0001413,100720.0,100710.0,0.148942]
[1737983061674,0.09748859,100720.0,100710.0,0.148942]
[1737983062281,0.0001413,100720.0,100710.0,0.148942]
[1737983062467,0.0001413,100720.0,100710.0,0.156942]
[1737983062834,0.09748859,100720.0,100710.0,0.148942]
[1737983063047,0.0011413,100720.0,100710.0,0.152942]
[1737983063604,0.89012449,100740.0,100710.0,0.152942]
[1737983063605,0.1465543,100730.0,100710.0,0.152942]
[1737983063800,0.09734729,100720.0,100710.0,0.153942]
[1737983064351,0.24627429,100720.0,100710.0,0.005]
[1737983064555,0.24627429,100720.0,100710.0,0.004]
[1737983065035,0.50966658,100720.0,100710.0,0.004]
[1737983065474,0.24627429,100720.0,100710.0,0.004]
[1737983066103,0.24627429,100720.0,100710.0,0.005]
[1737983066307,0.50966658,100720.0,100710.0,0.005]
[1737983066518,0.50966658,100720.0,100710.0,0.004]
[1737983066519,0.77006658,100720.0,100710.0,0.004]
[1737983066727,0.80536658,100720.0,100710.0,0.004]
[1737983066952,0.80536658,100720.0,100710.0,0.005]
[1737983067376,1.21901245,100720.0,100710.0,0.00340267]
[1737983067582,0.168942,100710.0,100700.0,0.00029652]
[1737983067809,0.26752698,100710.0,100700.0,0.00029652]
[1737983068127,0.25628929,100710.0,100700.0,0.00029652]
[1737983068625,0.27628929,100710.0,100700.0,0.00029652]
[1737983069424,0.26628929,100710.0,100700.0,0.00029652]
[1737983069738,0.51363658,100710.0,100700.0,0.00029652]
[1737983070081,0.52728245,100710.0,100700.0,0.00029652]
[1737983070288,0.82993516,100710.0,100700.0,0.00029652]
[1737983070751,0.91003516,100710.0,100700.0,0.00029652]
[1737983071162,0.87638929,100710.0,100700.0,0.00029652]
[1737983071583,0.91003516,100710.0,100700.0,0.00029652]
[1737983072224,0.87638929,100710.0,100700.0,0.00029652]
[1737983072638,0.89938929,100710.0,100700.0,0.00029652]
[1737983073667,0.87638929,100710.0,100700.0,0.00029652]
[1737983073873,0.88638929,100710.0,100700.0,0.00029652]
[1737983074079,0.89638929,100710.0,100700.0,0.00029652]
[1737983074261,0.49638929,100710.0,100700.0,0.00029652]
[1737983074487,0.48638929,100710.0,100700.0,0.00029652]
[1737983074667,0.59978158,100710.0,100700.0,0.00029652]
[1737983074868,0.32638929,100710.0,100700.0,0.00029652]
[1737983075069,0.24928929,100710.0,100700.0,0.00029652]
[1737983075432,0.52268158,100710.0,100700.0,0.00029652]
[1737983075696,0.69268158,100710.0,100700.0,0.00029652]
[1737983075877,0.67268158,100710.0,100700.0,0.00029652]
[1737983076087,0.66968158,100710.0,100700.0,0.00029652]
[1737983076293,0.69168158,100710.0,100700.0,0.00029652]
[1737983076487,0.69068158,100710.0,100700.0,0.00029652]
[1737983076905,0.69168158,100710.0,100700.0,0.00029652]
[1737983077107,0.66168158,100710.0,100700.0,0.00029652]
[1737983077335,0.42828929,100710.0,100700.0,0.00029652]
[1737983077515,0.40128929,100710.0,100700.0,0.00029652]
[1737983077872,0.40128929,100710.0,100700.0,0.14925352]
[1737983078301,0.25234729,100710.0,100700.0,0.14925352]
[1737983078494,0.40128929,100710.0,100700.0,0.14925352]
[1737983078701,0.10034729,100710.0,100700.0,0.14925352]
[1737983079887,0.24628929,100710.0,100700.0,0.15025352]
[1737983080088,0.24628929,100710.0,100700.0,0.00129652]
[1737983080697,0.65968158,100710.0,100700.0,0.00129652]
[1737983080920,0.39628929,100710.0,100700.0,0.00129652]
[1737983081125,0.40628929,100710.0,100700.0,0.00129652]
[1737983081411,0.50363658,100710.0,100700.0,0.00129652]
[1737983081610,0.40628929,100710.0,100700.0,0.00129652]
[1737983081992,0.39628929,100710.0,100700.0,0.00129652]
[1737983082384,0.40643059,100710.0,100700.0,0.00129652]
[1737983083188,0.39643059,100710.0,100700.0,0.00129652]
[1737983083629,0.09748859,100710.0,100700.0,0.15025352]
[1737983083802,0.24643059,100710.0,100700.0,0.00129652]
[1737983084851,0.24643059,100710.0,100700.0,0.15025352]
[1737983085054,0.09748859,100710.0,100700.0,0.41364581]
[1737983085600,0.09748859,100710.0,100700.0,0.15025352]
[1737983086058,0.24643059,100710.0,100700.0,0.00129652]
[1737983086686,0.09748859,100710.0,100700.0,0.00129652]
[1737983086891,0.24766828,100710.0,100700.0,0.15325352]
[1737983087107,0.24643059,100710.0,100700.0,0.15325352]
[1737983087318,0.24643059,100710.0,100700.0,0.00529652]
[1737983087532,0.24643059,100710.0,100700.0,0.05529652]
[1737983088160,0.24643059,100710.0,100700.0,0.05929652]
[1737983088161,0.40643059,100710.0,100700.0,0.05929652]
[1737983088394,0.42643059,100710.0,100700.0,0.05929652]
[1737983088603,0.40643059,100710.0,100700.0,0.05929652]
[1737983088812,0.40553059,100710.0,100700.0,0.05929652]
[1737983089645,0.40553059,100710.0,100700.0,0.05029652]
[1737983089867,0.40553059,100710.0,100700.0,0.05129652]
[1737983090076,0.66892288,100710.0,100700.0,0.05129652]
[1737983090285,0.39553059,100710.0,100700.0,0.05129652]
[1737983091373,0.24553059,100710.0,100700.0,0.20025352]
[1737983091583,0.09658859,100710.0,100700.0,0.20025352]
[1737983091789,0.24553059,100710.0,100700.0,0.20025352]
[1737983092236,0.09658859,100710.0,100700.0,0.20025352]
[1737983092866,0.24553059,100710.0,100700.0,0.20025352]
[1737983093068,0.09658859,100710.0,100700.0,0.20025352]
[1737983094612,0.09658859,100710.0,100700.0,0.19925352]
[1737983094825,0.09658859,100710.0,100700.0,0.20025352]
[1737983095041,0.24676828,100710.0,100700.0,0.05129652]
[1737983095260,0.39553059,100710.0,100700.0,0.05129652]
[1737983095468,0.42553059,100710.0,100700.0,0.05129652]
[1737983096075,0.39553059,100710.0,100700.0,0.05129652]
[1737983096281,0.41553059,100710.0,100700.0,0.05429652]
[1737983096562,0.41553059,100710.0,100700.0,0.05129652]
[1737983096766,0.39553059,100710.0,100700.0,0.05129652]
[1737983096976,0.39553059,100710.0,100700.0,0.05029652]
[1737983097608,0.39653059,100710.0,100700.0,0.05029652]
[1737983099267,0.24653059,100710.0,100700.0,0.19925352]
[1737983099701,0.24653059,100710.0,100700.0,0.05029652]
[1737983100134,0.39653059,100710.0,100700.0,0.05029652]
[1737983100767,0.24653059,100710.0,100700.0,0.19925352]
[1737983101245,0.24653059,100710.0,100700.0,0.05029652]
[1737983102917,0.24653059,100710.0,100700.0,0.19925352]
[1737983103130,0.09758859,100710.0,100700.0,0.3698323]
[1737983103341,0.0011413,100710.0,100700.0,0.4530323]
[1737983103986,0.0001413,100710.0,100700.0,0.4530323]
[1737983104422,0.0001413,100710.0,100700.0,0.6030323]
[1737983104626,0.0001413,100710.0,100700.0,0.74997959]
[1737983105496,0.0001413,100710.0,100700.0,0.6526323]
[1737983106176,0.0001413,100710.0,100700.0,0.6486323]
[1737983106388,0.0001413,100710.0,100700.0,0.6556323]
[1737983106591,0.0001413,100710.0,100700.0,0.67502728]
[1737983106801,0.0001413,100710.0,100700.0,0.67102728]
[1737983107007,0.0001413,100710.0,100700.0,0.68002728]
[1737983107199,0.0001413,100710.0,100700.0,0.67702728]
[1737983107620,0.0001413,100710.0,100700.0,0.77837457]
[1737983108043,0.0001413,100710.0,100700.0,0.68102728]
[1737983108533,0.0001413,100710.0,100700.0,0.77837457]
[1737983108972,0.0001413,100710.0,100700.0,0.68102728]
[1737983109175,0.0001413,100710.0,100700.0,0.34105352]
[1737983109382,0.24643059,100710.0,100700.0,0.06329652]
[1737983109794,0.24643059,100710.0,100700.0,0.21225352]
[1737983110001,0.0001413,100710.0,100700.0,0.3828323]
[1737983110411,0.0001413,100710.0,100700.0,0.3698323]
[1737983110815,0.0001413,100710.0,100700.0,0.20025352]
[1737983111017,0.0001413,100710.0,100700.0,0.19925352]
[1737983111251,0.09748859,100710.0,100700.0,0.19925352]
[1737983111452,0.09748859,100710.0,100700.0,0.20625352]
[1737983111684,0.09748859,100710.0,100700.0,0.20925352]
[1737983112078,0.24643059,100710.0,100700.0,0.06029652]
[1737983112904,0.39643059,100710.0,100700.0,0.05329652]
[1737983113106,0.62600937,100710.0,100700.0,0.05481652]
[1737983113316,0.62600937,100710.0,100700.0,0.06181652]
[1737983113527,0.62600937,100710.0,100700.0,0.05181652]
[1737983113733,0.46543059,100710.0,100700.0,0.05181652]
[1737983113981,0.46543059,100710.0,100700.0,0.05681652]
[1737983114190,0.46543059,100710.0,100700.0,0.05281652]
[1737983114369,0.45543059,100710.0,100700.0,0.05181652]
[1737983114576,0.45543059,100710.0,100700.0,0.05281652]
[1737983114928,0.47543059,100710.0,100700.0,0.05272252]
[1737983115137,0.45543059,100710.0,100700.0,0.05272252]
[1737983115323,0.47543059,100710.0,100700.0,0.05272252]
[1737983115719,0.45543059,100710.0,100700.0,0.05272252]
[1737983115919,0.09748859,100710.0,100700.0,0.20167952]
[1737983116405,0.09748859,100710.0,100700.0,0.3722583]
[1737983116582,0.09748859,100710.0,100700.0,0.20167952]
[1737983117182,0.0001413,100710.0,100700.0,0.3722583]
[1737983117836,0.0001413,100710.0,100700.0,0.21230133]
[1737983118843,0.0001413,100710.0,100700.0,0.38288011]
[1737983120529,0.0001413,100710.0,100700.0,0.51148011]
[1737983121142,0.0001413,100710.0,100700.0,0.6188274]
[1737983121391,0.0001412,100740.0,100730.0,0.148912]
[1737983122458,0.0001412,100740.0,100730.0,0.14990458]
[1737983122709,0.0001412,100740.0,100730.0,0.148912]
[1737983122953,0.32519562,100750.0,100740.0,0.148898]
[1737983123173,0.57142791,100750.0,100740.0,0.148898]
[1737983123391,0.42254291,100750.0,100740.0,0.148898]
[1737983124523,0.57142591,100750.0,100730.0,0.549985]